fUST/lending_fUST_20260217
["ID","MTS","AMOUNT","RATE_DAILY","PERIOD"]
[405792133,1771313439299,-500.0,0.00016514,2]
[405792135,1771313439309,-2000.0,0.00016514,2]
[405792137,1771313439318,-500.0,0.00016514,2]
[405792139,1771313439328,-250.0,0.00016514,2]
[405792141,1771313439337,-174.61919141,0.00016514,2]
[405792143,1771313439347,-250.0,0.00016514,2]
[405792145,1771313439357,-181.08010149,0.00016514,2]
[405792147,1771313439366,-500.0,0.00016514,2]
[405792149,1771313439376,-250.0,0.00016514,2]
[405792151,1771313439385,-250.0,0.00016514,2]
[405792153,1771313439395,-2000.0,0.00016514,2]
[405792155,1771313439404,-250.0,0.00016514,2]
[405792157,1771313439414,-500.0,0.00016514,2]
[405792159,1771313439423,-250.0,0.00016514,2]
[405792161,1771313439432,-2000.0,0.00016514,2]
[405792163,1771313439442,-250.0,0.00016514,2]
[405792165,1771313439452,-2000.0,0.00016514,2]
[405792167,1771313439461,-250.0,0.00016514,2]
[405792169,1771313439471,-239.17960489,0.00016514,2]
[405792171,1771313439482,-250.0,0.00016514,2]
[405792173,1771313439491,-187.78006525,0.00016514,2]
[405792175,1771313439501,-2000.0,0.00016514,2]
[405792177,1771313439510,-500.0,0.00016514,2]
[405792179,1771313439520,-268.51048749,0.00016514,2]
[405792181,1771313439529,-250.0,0.00016514,2]
[405792183,1771313439538,-2000.0,0.00016514,2]
[405792185,1771313439550,-250.0,0.00016514,2]
[405792187,1771313439569,-2000.0,0.00016514,2]
[405792189,1771313439579,-270.56129644,0.00016514,2]
[405792191,1771313439588,-250.0,0.00016514,2]
[405792193,1771313439597,-2000.0,0.00016514,2]
[405792195,1771313439606,-250.0,0.00016514,2]
[405792196,1771313439615,-194.72792766,0.00016514,2]
[405792198,1771313439623,-250.0,0.00016514,2]
[405792200,1771313439632,-1901.71629832,0.00016514,2]
[405792202,1771313439641,-250.0,0.00016514,2]
[405792204,1771313439650,-201.93286099,0.00016514,2]
[405792206,1771313439659,-250.0,0.00016514,2]
[405792208,1771313439668,-250.0,0.00016514,2]
[405792210,1771313439677,-209.40437684,0.00016514,2]
[405792212,1771313439686,-250.0,0.00016514,2]
[405792214,1771313439695,-500.0,0.00016514,2]
[405792216,1771313439704,-250.0,0.00016514,2]
[405792218,1771313439713,-217.15233878,0.00016514,2]
[405792220,1771313439726,-250.0,0.00016514,2]
[405792222,1771313439735,-500.0,0.00016514,2]
[405792224,1771313439744,-250.0,0.00016514,2]
[405792226,1771313439753,-250.0,0.00016514,2]
[405792228,1771313439764,-225.18697532,0.00016514,2]
[405792230,1771313439773,-250.0,0.00016514,2]
[405792232,1771313439782,-500.0,0.00016514,2]
[405792234,1771313439791,-250.0,0.00016514,2]
[405792236,1771313439800,-250.0,0.00016514,2]
[405792238,1771313439809,-233.51889341,0.00016514,2]
[405792240,1771313439818,-250.0,0.00016514,2]
[405792242,1771313439827,-500.0,0.00016514,2]
[405792244,1771313439836,-250.0,0.00016514,2]
[405792246,1771313439846,-250.0,0.00016514,2]
[405792248,1771313439854,-242.15909246,0.00016514,2]
[405792250,1771313439863,-250.0,0.00016514,2]
[405792252,1771313439873,-500.0,0.00016514,2]
[405792254,1771313439882,-250.0,0.00016514,2]
[405792256,1771313439891,-250.0,0.00016514,2]
[405792258,1771313439901,-251.11897888,0.00016514,2]
[405792260,1771313439910,-250.0,0.00016514,2]
[405792262,1771313439920,-500.0,0.00016514,2]
[405792264,1771313439929,-250.0,0.00016514,2]
[405792266,1771313439939,-250.0,0.00016514,2]
[405792268,1771313439949,-260.4103811,0.00016514,2]
[405792270,1771313439959,-250.0,0.00016514,2]
[405792271,1771313439969,-500.0,0.00016514,2]
[405792273,1771313439978,-250.0,0.00016514,2]
[405792275,1771313439988,-250.0,0.00016514,2]
[405792277,1771313439997,-250.0,0.00016514,2]
[405792279,1771313440009,-270.0455652,0.00016514,2]
[405792281,1771313440025,-500.0,0.00016514,2]
[405792283,1771313440034,-250.0,0.00016514,2]
[405792285,1771313440043,-250.0,0.00016514,2]
[405792287,1771313440053,-250.0,0.00016514,2]
[405792289,1771313440062,-500.0,0.00016514,2]
[405792291,1771313440071,-250.0,0.00016514,2]
[405792293,1771313440080,-280.03725112,0.00016514,2]
[405792295,1771313440089,-250.0,0.00016514,2]
[405792297,1771313440098,-250.0,0.00016514,2]
[405792299,1771313440107,-500.0,0.00016514,2]
[405792301,1771313440116,-250.0,0.00016514,2]
[405792303,1771313440125,-290.39862941,0.00016514,2]
[405792304,1771313440134,-250.0,0.00016514,2]
[405792311,1771313440248,-500.0,0.00016514,2]
[405792312,1771313440258,-250.0,0.00016514,2]
[405792313,1771313440266,-301.1433787,0.00016514,2]
[405792314,1771313440276,-500.0,0.00016514,2]
[405792315,1771313440286,-250.0,0.00016514,2]
[405792316,1771313440296,-250.0,0.00016514,2]
[405792317,1771313440306,-500.0,0.00016514,2]
[405792318,1771313440316,-500.0,0.00016514,2]
[405792319,1771313440325,-500.0,0.00016514,2]
[405792320,1771313440335,-150.0,0.00016548,2]
[405792321,1771313440344,-213.64538536,0.00016548,2]
[405792322,1771313440354,-186.89188245,0.00016548,2]
[405792323,1771313440364,-500.0,0.00016548,2]
[405792324,1771313440375,-500.0,0.00016548,2]
[405792325,1771313440385,-500.0,0.00016548,2]
[405792326,1771313440395,-200.0,0.00016548,2]
[405792327,1771313440405,-634.75689165,0.00016548,2]
[405792328,1771313440414,-500.0,0.00016548,2]
[405792329,1771313440424,-1432.1866611,0.00016584,2]
[405792330,1771313440434,-500.0,0.00016602,2]
[405792331,1771313440443,-150.0,0.00016602,2]
[405792332,1771313440453,-500.0,0.00016602,2]
[405792333,1771313440463,-500.0,0.00016602,2]
[405792335,1771313440473,-500.0,0.00016602,2]
[405792337,1771313440482,-500.0,0.00016602,2]
[405792339,1771313440491,-630.877447,0.00016657,2]
[405792341,1771313440500,-500.0,0.00016657,2]
[405792343,1771313440509,-500.0,0.00016657,2]
[405792345,1771313440518,-500.0,0.0001671,2]
[405792347,1771313440527,-500.0,0.00016712,2]
[405792349,1771313440535,-500.0,0.00016712,2]
[405792351,1771313440545,-520.838,0.00016712,2]
[405792353,1771313440554,-500.0,0.00016712,2]
[405792355,1771313440562,-500.0,0.00016712,2]
[405792357,1771313440572,-500.0,0.00016712,2]
[405792359,1771313440581,-474.3083735,0.00016712,2]
[405792361,1771313440590,-500.0,0.00016767,2]
[405792363,1771313440599,-500.0,0.00016767,2]
[405792365,1771313440608,-1600.470358,0.00016816,2]
[405792367,1771313440617,-162.92012363,0.00016822,2]
[405792369,1771313440626,-500.0,0.00016822,2]
[405792371,1771313440634,-500.0,0.00016876,2]
[405792373,1771313440643,-804.0,0.00016879,2]
[405792375,1771313440652,-295.56537838,0.00016897,2]
[405792377,1771313440661,-804.0,0.00016909,2]
[405792379,1771313440670,-2239.627,0.00016912,2]
[405792380,1771313440679,-639.306,0.00016912,2]
[405792382,1771313440688,-1429.536,0.00016912,2]
[405792384,1771313440697,-193.46,0.00016912,2]
[405792386,1771313440706,-190.539,0.00016912,2]
[405792388,1771313440716,-491.855,0.00016912,2]
[405792390,1771313440727,-500.0,0.00016931,2]
[405792392,1771313440736,-500.0,0.00016978,2]
[405792394,1771313440745,-500.0,0.00016979,2]
[405792396,1771313440754,-9000.0,0.00016979,2]
[405792398,1771313440763,-2305.68093041,0.00016979,2]
[405792400,1771313440772,-440.62813975,0.00016986,2]
[405792402,1771313440781,-500.0,0.00016986,2]
[405792404,1771313440791,-483.03677039,0.00016986,2]
[405792406,1771313440800,-500.0,0.00016986,2]
[405792408,1771313440809,-500.0,0.00016989,2]
[405792410,1771313440820,-500.0,0.00016989,2]
[405792412,1771313440828,-500.0,0.00016989,2]
[405792414,1771313440837,-500.0,0.00016989,2]
[405792416,1771313440846,-633.41980092,0.00016989,2]
[405792418,1771313440855,-50626.72248559,0.0001699,2]
[405792420,1771313440864,-9197.75894114,0.00017,2]
[405792422,1771313440872,-400.06856819,0.00017,2]
[405792424,1771313440881,-318.57386631,0.0001715,2]
[405792426,1771313440890,-500.0,0.0001715,2]
[405792428,1771313440899,-34228.81190022,0.00017152,2]
[405792430,1771313440907,-804.0,0.00017159,2]
[405792432,1771313440917,-168.0,0.0001718,2]
[405792434,1771313440925,-500.0,0.00017199,2]
[405792436,1771313440934,-10569.0,0.000172,2]
[405792438,1771313440942,-500.0,0.0001726,2]
[405792440,1771313440951,-500.0,0.0001726,2]
[405792441,1771313440959,-355.94109798,0.0001726,2]
[405792443,1771313440968,-406.78982627,0.0001726,2]
[405792445,1771313440977,-634.97349444,0.0001726,2]
[405792447,1771313440986,-160.0,0.00017265,3]
[405792449,1771313440995,-167.00937958,0.000173,2]
[405792451,1771313441003,-282.11170339,0.0001732,2]
[405792453,1771313441014,-322.4133753,0.0001732,2]
[405792455,1771313441023,-157.138,0.00017324,2]
[405792457,1771313441032,-500.0,0.00017324,2]
[405792459,1771313441042,-500.0,0.00017324,2]
[405792461,1771313441051,-500.0,0.00017324,2]
[405792463,1771313441059,-500.0,0.00017324,2]
[405792465,1771313441068,-577.41216653,0.00017324,2]
[405792467,1771313441077,-6014.57911055,0.00017325,2]
[405792469,1771313441086,-146142.68764043,0.00017325,2]
[405792471,1771313441095,-356088.09223275,0.00017325,2]
[405792474,1771313441109,-235448.30478441,0.00017325,2]
[405792476,1771313441118,-727.02,0.00017325,2]
[405792478,1771313441128,-727.02,0.00017325,2]
[405792479,1771313441136,-727.02,0.00017325,2]
[405792481,1771313441145,-727.02,0.00017325,2]
[405792483,1771313441154,-727.02,0.00017325,2]
[405792485,1771313441163,-727.02,0.00017325,2]
[405792487,1771313441172,-727.02,0.00017325,2]
[405792489,1771313441180,-727.02,0.00017325,2]
[405792491,1771313441189,-727.02,0.00017325,2]
[405792493,1771313441199,-727.02,0.00017325,2]
[405792495,1771313441208,-727.02,0.00017325,2]
[405792497,1771313441217,-727.02,0.00017325,2]
[405792499,1771313441225,-727.02,0.00017325,2]
[405792501,1771313441234,-727.02,0.00017325,2]
[405792503,1771313441243,-727.02,0.00017325,2]
[405792505,1771313441252,-727.02,0.00017325,2]
[405792507,1771313441261,-727.02,0.00017325,2]
[405792509,1771313441270,-784.43,0.00017325,2]
[405792511,1771313441291,-503.26712801,0.00017392,2]
[405792513,1771313441313,-886.343,0.00017393,2]
[405792515,1771313441336,-151.0,0.000174,2]
[405792517,1771313441363,-151.0,0.000174,2]
[405792519,1771313441382,-151.0,0.000174,2]
[405792521,1771313441398,-804.0,0.00017403,2]
[405792523,1771313441423,-168.0,0.00017404,2]
[405792525,1771313441443,-12698.24394429,0.00017424,2]
[405792527,1771313441467,-168.0,0.00017441,2]
[405792529,1771313441489,-168.0,0.00017449,2]
[405792531,1771313441510,-3766.80272994,0.00017499,2]
[405792795,1771313446394,-250.0,0.00016514,2]
[405792796,1771313446404,-250.0,0.00016514,2]
[405792797,1771313446414,-250.0,0.00016514,2]
[405792798,1771313446423,-239.17960489,0.00016514,2]
[405792799,1771313519626,-1177.46236945,0.00016186,2]
[405792800,1771313551909,500.0,0.00013752,2]
[405792802,1771313879959,157.14,6.993e-05,2]
[405792803,1771313880273,157.13,6.993e-05,2]
[405792811,1771314334121,-1577.13489409,0.00014776,2]
[405792812,1771314334143,-738.22386676,0.00014925,2]
[405792813,1771314432094,-3011.17761733,0.00014776,2]
[405792814,1771314438123,-977.75865277,0.00014776,2]
[405792815,1771314451075,-364.12822092,0.00014776,2]
[405792816,1771314454102,-363.42951515,0.00014776,2]
[405792817,1771314552107,-283.50599383,0.00014776,2]
[405792818,1771314552132,-248.07299091,0.00015,2]
[405792819,1771314552157,-1200.0,0.00015075,2]
[405792820,1771314552178,-1564.9237376,0.00015076,2]
[405792821,1771314552206,-570.55934156,0.00015231,2]
[405792822,1771314552227,-1000.0,0.00015232,2]
[405792823,1771314552248,-257.991228,0.00015286,2]
[405792824,1771314552269,-300.0,0.00015534,2]
[405792825,1771314552292,-300.0,0.00015535,2]
[405792826,1771314552314,-300.0,0.00015535,2]
[405792827,1771314552335,-300.0,0.00015535,2]
[405792828,1771314552358,-300.0,0.00015535,2]
[405792829,1771314552381,-300.0,0.00015535,2]
[405792830,1771314552405,-300.0,0.00015535,2]
[405792831,1771314552429,-300.0,0.00015535,2]
[405792832,1771314552454,-300.0,0.00015535,2]
[405792833,1771314552478,-300.0,0.00015535,2]
[405792834,1771314552501,-300.0,0.00015535,2]
[405792835,1771314552523,-300.0,0.00015535,2]
[405792836,1771314552542,-18476.73276805,0.00015535,2]
[405792996,1771314638689,-243.11153109,0.00015994,2]
[405792999,1771314638700,-300.0,0.00015999,2]
[405793001,1771314638710,-1200.0,0.00015999,2]
[405793002,1771314638719,-8614.35352487,0.00016,2]
[405793006,1771314638746,-9691.23275715,0.00016,2]
[405793008,1771314638756,-110.83306861,0.00016087,2]
[405793023,1771314638895,-108.63985031,0.00016087,2]
[405793542,1771314644079,-543.0415231,0.00016087,2]
[405793545,1771314644091,-848.48922038,0.00016087,2]
[405793547,1771314644100,-1942.285503,0.00016128,2]
[405793549,1771314644111,-2703.67745299,0.00016145,2]
[405793855,1771314661212,162.77,0.000145,2]
[405793861,1771314903889,500.0,0.00013273,2]
[405793862,1771314903941,1093.32204426,0.00013821,2]
[405793870,1771315250435,4850.23421686,0.000145,2]
[405793873,1771315452962,5000.0,0.00014,2]
[405793874,1771315475079,4212.60188712,0.00014,2]
[405793875,1771315533091,-2091.98080423,0.00014211,2]
[405793876,1771315533112,-257.58184881,0.00014367,2]
[405793877,1771315533131,-629.7989998,0.00014522,2]
[405793878,1771315533150,-1040.75340391,0.00014663,2]
[405793879,1771315641081,-2447.50698242,0.00014372,2]
[405793880,1771315641107,-1196.72009758,0.00014372,2]
[405793881,1771315641128,-2384.87691188,0.00014517,2]
[405793882,1771315641147,-810.52665339,0.00014663,2]
[405793883,1771315641165,-250.84133324,0.00014899,2]
[405793884,1771315641184,-595.152761,0.00015232,2]
[405793885,1771315641204,-305.14997177,0.00015512,2]
[405793886,1771315683412,305.22,5.994e-05,2]
[405793899,1771315754097,-5000.0,0.00014228,2]
[405793900,1771315754119,-341.64828193,0.00015457,2]
[405793902,1771315770070,-158.35171807,0.00015457,2]
[405793903,1771315770092,-203.31309328,0.00015457,2]
[405793904,1771315770113,-564.23376367,0.00015457,2]
[405793905,1771315770133,-300.0,0.00015457,2]
[405793906,1771315770154,-838.59686148,0.00015458,2]
[405793916,1771315831650,-1503.9815687,0.00015303,2]
[405793918,1771315831660,-2513.56845972,0.00015458,2]
[405793920,1771315831670,-323.7806876,0.00015458,2]
[405793922,1771315831679,-53.92314977,0.00015512,2]
[405793924,1771315831688,-300.0,0.00015658,2]
[405793926,1771315831697,-1200.0,0.00015658,2]
[405793928,1771315831707,-300.0,0.00015659,2]
[405793930,1771315831716,-300.0,0.00015659,2]
[405793932,1771315831725,-300.0,0.00015659,2]
[405793934,1771315831735,-300.0,0.00015659,2]
[405793936,1771315831745,-300.0,0.00015659,2]
[405793938,1771315831758,-300.0,0.00015659,2]
[405793940,1771315831768,-300.0,0.00015659,2]
[405793941,1771315831777,-300.0,0.00015659,2]
[405793943,1771315831787,-300.0,0.00015659,2]
[405793944,1771315831796,-300.0,0.00015659,2]
[405793945,1771315831806,-65.63988087,0.00015659,2]
[405793947,1771315831817,-234.36011913,0.00015659,2]
[405793949,1771315831826,-300.0,0.00015659,2]
[405793951,1771315831836,-300.0,0.00015659,2]
[405793953,1771315831846,-300.0,0.00015659,2]
[405793955,1771315831855,-300.0,0.00015659,2]
[405793957,1771315831865,-180.14903782,0.000157,2]
[405793959,1771315831875,-180.14903781,0.000157,2]
[405793961,1771315831884,-180.14903781,0.000157,2]
[405793962,1771315831894,-15584.2085667,0.000159,2]
[405793963,1771315831903,-5395.92400024,0.00016052,2]
[405793964,1771315831915,-742.18218896,0.00016052,2]
[405794017,1771315837752,-255.43021184,0.00015381,2]
[405794019,1771315837762,-4725.4882871,0.00015952,2]
[405794021,1771315837771,-3463.5122467,0.00016052,2]
[405794023,1771315837781,-716.0933305,0.00016052,2]
[405794025,1771315837790,-600.0,0.00016217,2]
[405794027,1771315837799,-500.0,0.00016234,2]
[405794029,1771315837808,-157.36937783,0.00016438,2]
[405794031,1771315837820,-342.63062217,0.00016438,2]
[405794033,1771315837829,-500.0,0.00016438,2]
[405794048,1771315837955,-130.77250589,0.00016438,2]
[405794219,1771315839992,-453.83630163,0.00016438,2]
[405794221,1771315840002,-500.0,0.00016521,2]
[405794223,1771315840012,-250.0,0.00016521,2]
[405794225,1771315840021,-500.0,0.00016521,2]
[405794227,1771315840031,-250.0,0.00016521,2]
[405794229,1771315840041,-500.0,0.00016521,2]
[405794231,1771315840050,-358.90666052,0.00016521,2]
[405794233,1771315840060,-500.0,0.00016521,2]
[405794235,1771315840069,-500.0,0.00016521,2]
[405794237,1771315840079,-174.61919141,0.00016521,2]
[405794239,1771315840088,-500.0,0.00016521,2]
[405794241,1771315840098,-143.73374826,0.00016521,2]
[405794831,1771315845694,-37.34635323,0.00016521,2]
[405794833,1771315845704,-500.0,0.00016521,2]
[405794835,1771315845713,-187.78006525,0.00016521,2]
[405794837,1771315845723,-500.0,0.00016521,2]
[405794840,1771315845734,-194.72792766,0.00016521,2]
[405794842,1771315845744,-500.0,0.00016521,2]
[405794844,1771315845753,-201.93286099,0.00016521,2]
[405794846,1771315845763,-500.0,0.00016521,2]
[405794847,1771315845772,-209.40437684,0.00016521,2]
[405794849,1771315845781,-500.0,0.00016521,2]
[405794852,1771315845791,-217.15233878,0.00016521,2]
[405794854,1771315845800,-500.0,0.00016521,2]
[405794856,1771315845810,-225.18697532,0.00016521,2]
[405794858,1771315845819,-250.0,0.00016521,2]
[405794859,1771315845828,-500.0,0.00016521,2]
[405794861,1771315845837,-233.51889341,0.00016521,2]
[405794863,1771315845848,-272.62967108,0.00016521,2]
[405794865,1771315845857,-527.34264615,0.00016521,2]
[405795057,1771316740129,-500.0,0.00014715,2]
[405795058,1771316740153,-10.86700113,0.0001501,2]
[405795059,1771316825078,-289.1796776,0.0001501,2]
[405795060,1771316825101,-263.52169148,0.00015085,2]
[405795061,1771316825124,-39.54470774,0.00015161,2]
[405795062,1771316825153,-260.45529226,0.00015161,2]
[405795063,1771316825174,-500.0,0.00015162,2]
[405795064,1771316825197,-500.0,0.00015162,2]
[405795065,1771316825357,-500.0,0.00015162,2]
[405795066,1771316825381,-506.59259638,0.00015162,2]
[405795067,1771316825405,-135.24766718,0.00015162,2]
[405795068,1771316830084,-364.75233282,0.00015162,2]
[405795069,1771316830108,-26.17729665,0.00015162,2]
[405795070,1771316950100,-4725.4882871,0.00015081,2]
[405795071,1771316950123,-500.0,0.00015161,2]
[405795072,1771316950145,-300.0,0.00015161,2]
[405795073,1771316950167,-500.0,0.00015161,2]
[405795074,1771316950189,-500.0,0.00015161,2]
[405795075,1771316950212,-500.0,0.00015162,2]
[405795076,1771316950235,-500.0,0.00015162,2]
[405795077,1771316950257,-500.0,0.00015162,2]
[405795078,1771316950281,-500.0,0.00015162,2]
[405795079,1771316950304,-500.0,0.00015162,2]
[405795080,1771316950328,-500.0,0.00015162,2]
[405795081,1771316950352,-491.82337354,0.00015162,2]
[405795082,1771316950374,-510.48880419,0.00015162,2]
[405795083,1771316954120,-689.51119581,0.00015162,2]
[405795084,1771316954140,-8662.06401451,0.00015163,2]
[405795119,1771317031758,-2000.0,0.00015,2]
[405795121,1771317031767,-500.0,0.00015161,2]
[405795123,1771317031776,-174.34218045,0.00015161,2]
[405795125,1771317031786,-300.0,0.00015162,2]
[405795127,1771317031795,-385.1444386,0.00015163,2]
[405795134,1771317031859,-3792.79452271,0.00015163,2]
[405795263,1771317040219,-184.39632469,0.00015162,2]
[405795264,1771317040229,-8529.2507339,0.00015163,2]
[405795265,1771317040242,-1010.9757568,0.00015163,2]
[405795269,1771317043159,-2750.09981599,0.00015163,2]
[405795276,1771317045839,-1375.95958318,0.00015011,2]
[405795277,1771317045848,-7456.66076259,0.00015163,2]
[405795278,1771317045858,-206.392982,0.00015181,2]
[405795279,1771317045867,-2032.51107561,0.000155,2]
[405795280,1771317045876,-264.09545261,0.00015514,2]
[405795281,1771317045885,-475.37181469,0.00015514,2]
[405795282,1771317045898,-845.10544835,0.00015514,2]
[405795283,1771317045907,-1319.15678578,0.00015514,2]
[405795284,1771317045917,-166.66666666,0.00015913,2]
[405795285,1771317045926,-5205.8369117,0.00016094,2]
[405795286,1771317045937,-655.7002289,0.00016094,2]
[405795287,1771317045946,-716.0933305,0.00016094,2]
[405795288,1771317045955,-3299.2521542,0.00016094,2]
[405795289,1771317045967,-2620.4470927,0.00016094,2]
[405795290,1771317045976,-300.0,0.0001623,2]
[405795291,1771317045986,-300.0,0.0001623,2]
[405795292,1771317045995,-956.0,0.00016282,2]
[405795293,1771317046004,-2507.22,0.0001629,2]
[405795294,1771317046013,-804.0,0.00016299,2]
[405795295,1771317046022,-804.0,0.00016312,2]
[405795296,1771317046031,-956.0,0.0001642,2]
[405795297,1771317046040,-500.0,0.00016438,2]
[405795298,1771317046050,-500.0,0.00016438,2]
[405795299,1771317046059,-500.0,0.00016438,2]
[405795300,1771317046068,-500.0,0.00016438,2]
[405795301,1771317046077,-500.0,0.00016438,2]
[405795302,1771317046087,-804.0,0.00016441,2]
[405795303,1771317046096,-174.61919141,0.00016511,2]
[405795304,1771317046105,-181.08010149,0.00016511,2]
[405795305,1771317046115,-202.21885639,0.00016511,2]
[405795306,1771317046125,-250.0,0.00016511,2]
[405795307,1771317046134,-500.0,0.00016511,2]
[405795308,1771317046145,-250.0,0.00016511,2]
[405795309,1771317046155,-500.0,0.00016511,2]
[405795310,1771317046164,-250.0,0.00016511,2]
[405795311,1771317046174,-250.0,0.00016511,2]
[405795312,1771317046183,-250.0,0.00016511,2]
[405795313,1771317046193,-250.0,0.00016511,2]
[405795314,1771317046202,-250.0,0.00016511,2]
[405795315,1771317046212,-250.0,0.00016511,2]
[405795316,1771317046222,-156.10249674,0.00016511,2]
[405795317,1771317046231,-350.0,0.00016521,2]
[405795318,1771317046240,-130.01343911,0.00016521,2]
[405795319,1771317046253,-219.98656089,0.00016521,2]
[405795320,1771317046262,-630.0,0.00016521,2]
[405795321,1771317046271,-350.0,0.00016521,2]
[405795322,1771317046281,-630.0,0.00016521,2]
[405795323,1771317046290,-350.0,0.00016521,2]
[405795324,1771317046300,-630.0,0.00016521,2]
[405795325,1771317046309,-360.85319752,0.00016521,2]
[405795326,1771317046318,-630.0,0.00016521,2]
[405795327,1771317046327,-630.0,0.00016521,2]
[405795328,1771317046336,-630.0,0.00016521,2]
[405795329,1771317046345,-630.0,0.00016521,2]
[405795330,1771317046355,-630.0,0.00016521,2]
[405795331,1771317046364,-630.0,0.00016521,2]
[405795332,1771317046374,-630.0,0.00016521,2]
[405795333,1771317046384,-630.0,0.00016521,2]
[405795334,1771317046394,-630.0,0.00016521,2]
[405795335,1771317046403,-630.0,0.00016521,2]
[405795336,1771317046412,-630.0,0.00016521,2]
[405795337,1771317046422,-187.35389427,0.00016521,2]
[405795338,1771317119338,-500.0,0.00015161,2]
[405795339,1771317119368,-500.0,0.00015161,2]
[405795340,1771317119396,-152.94677561,0.00015161,2]
[405795341,1771317119408,-194.10644878,0.00015161,2]
[405795342,1771317119418,-305.89355122,0.00015161,2]
[405795343,1771317119431,-194.10644878,0.00015161,2]
[405795344,1771317119442,-305.89355122,0.00015161,2]
[405795345,1771317119457,-177.88246744,0.00015161,2]
[405795346,1771317119467,-169.17075695,0.00015161,2]
[405795348,1771317959264,-500.0,0.00014,2]
[405795349,1771317959285,-300.0,0.00014016,2]
[405795350,1771317959305,-428.09004456,0.00014055,2]
[405795351,1771317959327,-1207.10476125,0.00014416,2]
[405795353,1771318027196,5000.0,0.00014,2]
[405795354,1771318036072,-366.80836178,0.00014272,2]
[405795355,1771318046126,-171.76362631,0.00014272,2]
[405795356,1771318050175,3395.14804911,0.00014,2]
[405795357,1771318050203,-1038.562906,0.00014272,2]
[405795358,1771318050230,-4134.80225123,0.00014738,2]
[405795359,1771318050250,-300.0,0.00014786,2]
[405795360,1771318050273,-1200.0,0.00014787,2]
[405795361,1771318050296,-264.79125765,0.00014788,2]
[405795362,1771318050324,-234.0,0.00014836,2]
[405795363,1771318050347,-208.0,0.00014836,2]
[405795364,1771318050367,-300.0,0.00014836,2]
[405795365,1771318050388,-500.0,0.00014836,2]
[405795366,1771318050411,-500.0,0.00014836,2]
[405795367,1771318050432,-500.0,0.00014836,2]
[405795368,1771318050454,-500.0,0.00014836,2]
[405795369,1771318050477,-500.0,0.00014836,2]
[405795370,1771318050500,-500.0,0.00014836,2]
[405795371,1771318050522,-500.0,0.00014836,2]
[405795372,1771318050543,-338.63255985,0.00014836,2]
[405795373,1771318050565,-500.0,0.00014836,2]
[405795374,1771318050587,-500.0,0.00014836,2]
[405795375,1771318050610,-500.0,0.00014836,2]
[405795376,1771318050633,-500.0,0.00014836,2]
[405795377,1771318050656,-500.0,0.00014836,2]
[405795378,1771318050677,-300.0,0.00014836,2]
[405795379,1771318050705,-478.21942186,0.00014836,2]
[405795380,1771318050727,-500.0,0.00014836,2]
[405795381,1771318050747,-500.0,0.00014836,2]
[405795382,1771318050768,-500.0,0.00014836,2]
[405795383,1771318050788,-500.0,0.00014836,2]
[405795384,1771318050812,-500.0,0.00014836,2]
[405795385,1771318050832,-500.0,0.00014836,2]
[405795386,1771318050853,-500.0,0.00014836,2]
[405795387,1771318050876,-500.0,0.00014836,2]
[405795388,1771318050896,-500.0,0.00014836,2]
[405795389,1771318050918,-500.0,0.00014836,2]
[405795390,1771318050941,-500.0,0.00014836,2]